bitfinex-derivatives/quotes_SOLF0:USTF0_20250606
["timestamp","ask_amount","ask_price","bid_price","bid_amount"]
[1749248872359,42.32763006,148.77,148.76,6.7171]
[1749248873067,42.32893233,148.77,148.76,6.7171]
[1749248873459,42.32904863,148.77,148.76,6.7171]
[1749248873963,37.65289278,148.77,148.76,6.7171]
[1749248874158,42.32904863,148.77,148.76,6.7171]
[1749248874361,42.32898975,148.77,148.76,6.7171]
[1749248875672,42.33006701,148.77,148.76,6.7171]
[1749248875855,42.33006701,148.77,148.76,9.75184284]
[1749248875856,42.32994899,148.77,148.76,9.75184284]
[1749248876058,42.32995037,148.77,148.76,9.75184284]
[1749248876871,42.32509422,148.77,148.76,9.75184284]
[1749248877073,42.32500534,148.77,148.76,9.75184284]
[1749248877264,37.65289278,148.77,148.76,9.75184284]
[1749248877565,42.32517055,148.77,148.76,9.75184284]
[1749248877766,42.32528073,148.77,148.76,9.75184284]
[1749248877962,37.65289278,148.77,148.76,9.75184284]
[1749248878368,42.32627864,148.77,148.76,9.75184284]
[1749248878768,42.32627864,148.77,148.76,19.75184284]
[1749248878971,37.65289278,148.77,148.76,19.75184284]
[1749248879164,42.32629819,148.77,148.76,19.75184284]
[1749248879366,42.3254538,148.77,148.76,16.7171]
[1749248879565,42.3254538,148.77,148.76,19.75184284]
[1749248879877,42.325542,148.77,148.76,19.75184284]
[1749248880069,42.32555049,148.77,148.76,19.75184284]
[1749248880770,42.3255519,148.77,148.76,19.75184284]
[1749248881173,37.65289278,148.77,148.76,19.75184284]
[1749248881668,42.32467641,148.77,148.76,19.75184284]
[1749248882070,9.20486786,148.77,148.76,19.75184284]
[1749248882464,9.20517556,148.77,148.76,19.75184284]
[1749248882667,9.20517415,148.77,148.76,19.75184284]
[1749248882866,4.53289278,148.77,148.76,19.75184284]
[1749248883074,9.20514659,148.77,148.76,19.75184284]
[1749248883373,9.20605835,148.77,148.76,19.75184284]
[1749248883773,4.53289278,148.77,148.76,19.75184284]
[1749248883974,9.2061135,148.77,148.76,19.75184284]
[1749248884273,9.20644764,148.77,148.76,19.75184284]
[1749248884471,9.20656525,148.77,148.76,19.75184284]
[1749248884673,9.20652668,148.77,148.76,19.75184284]
[1749248884973,4.53289278,148.77,148.76,19.75184284]
[1749248885271,9.20652872,148.77,148.76,19.75184284]
[1749248885472,9.20665331,148.77,148.76,19.75184284]
[1749248885670,9.20666227,148.77,148.76,19.75184284]
[1749248886272,9.20668984,148.77,148.76,19.75184284]
[1749248887170,4.53289278,148.77,148.76,19.75184284]
[1749248887372,9.21122124,148.77,148.76,19.75184284]
[1749248887568,4.53289278,148.77,148.76,19.75184284]
[1749248887766,9.21371201,148.77,148.76,19.75184284]
[1749248888575,9.21043873,148.77,148.76,19.75184284]
[1749248889175,4.53289278,148.77,148.76,19.75184284]
[1749248889474,9.21012438,148.77,148.76,19.75184284]
[1749248889669,9.21012438,148.77,148.76,13.03474284]
[1749248890175,9.21134681,148.77,148.76,13.03474284]
[1749248890574,9.21126597,148.77,148.76,13.03474284]
[1749248890775,4.53289278,148.77,148.76,13.03474284]
[1749248891176,9.21130644,148.77,148.76,13.03474284]
[1749248891476,9.21112059,148.77,148.76,13.03474284]
[1749248891676,9.21112059,148.77,148.76,19.75184284]
[1749248891975,9.21112059,148.77,148.76,13.03474284]
[1749248892174,9.2119274,148.77,148.76,13.03474284]
[1749248892373,9.2119274,148.77,148.76,10.0]
[1749248892573,9.21187558,148.77,148.76,10.0]
[1749248892779,4.53289278,148.77,148.76,10.0]
[1749248893275,9.21270363,148.77,148.76,10.0]
[1749248893677,9.21270363,148.77,148.76,16.7171]
[1749248893873,9.21270363,148.77,148.76,19.75184284]
[1749248894077,9.21288624,148.77,148.76,19.75184284]
[1749248895470,4.53289278,148.77,148.76,19.75184284]
[1749248895968,9.21280566,148.77,148.76,19.75184284]
[1749248896775,9.20736084,148.77,148.76,19.75184284]
[1749248897080,4.53289278,148.77,148.76,19.75184284]
[1749248897482,4.53289278,148.77,148.76,16.7171]
[1749248897677,9.20769121,148.77,148.76,19.75184284]
[1749248897877,9.20758585,148.77,148.76,19.75184284]
[1749248898079,4.53289278,148.77,148.76,19.75184284]
[1749248898582,9.2075326,148.77,148.76,19.75184284]
[1749248899280,9.20005915,148.77,148.76,19.75184284]
[1749248900082,9.20013853,148.77,148.76,19.75184284]
[1749248900283,4.53289278,148.77,148.76,19.75184284]
[1749248900981,9.1991399,148.77,148.76,19.75184284]
[1749248901282,9.19916513,148.77,148.76,19.75184284]
[1749248901589,9.19378035,148.77,148.76,19.75184284]
[1749248901876,9.19389771,148.77,148.76,19.75184284]
[1749248902074,33.08768257,148.78,148.77,6.7166]
[1749248902272,37.74872301,148.78,148.77,6.7166]
[1749248902683,37.74876241,148.78,148.77,6.7166]
[1749248903182,37.74877514,148.78,148.77,6.7166]
[1749248903382,33.08768257,148.78,148.77,6.7166]
[1749248904081,37.74874442,148.78,148.77,6.7166]
[1749248904683,33.08768257,148.78,148.77,6.7166]
[1749248905086,37.74860652,148.78,148.77,6.7166]
[1749248905379,33.08768257,148.78,148.77,6.7166]
[1749248905584,37.74914608,148.78,148.77,6.7166]
[1749248905884,37.74920459,148.78,148.77,6.7166]
[1749248906585,33.08768257,148.78,148.77,6.7166]
[1749248907282,37.75499858,148.78,148.77,6.7166]
[1749248907484,37.75533406,148.78,148.77,6.7166]
[1749248908681,37.77570479,148.78,148.77,6.7166]
[1749248908886,33.08768257,148.78,148.77,6.7166]
[1749248909084,37.77563951,148.78,148.77,6.7166]
[1749248909386,37.77558049,148.78,148.77,6.7166]
[1749248909585,37.77558049,148.78,148.77,16.7166]
[1749248909786,37.77574722,148.78,148.77,16.7166]
[1749248909981,37.77669212,148.78,148.77,16.7166]
[1749248910189,33.08768257,148.78,148.77,16.7166]
[1749248910582,37.77697159,148.78,148.77,16.7166]
[1749248910888,37.77735049,148.78,148.77,16.7166]
[1749248911087,33.08768257,148.78,148.77,16.7166]
[1749248911389,37.77735049,148.78,148.77,16.7166]
[1749248912093,37.7770782,148.78,148.77,16.7166]
[1749248912784,37.77719626,148.78,148.77,16.7166]
[1749248913278,33.08768257,148.78,148.77,16.7166]
[1749248913482,37.77607566,148.78,148.77,19.75134284]
[1749248913678,33.08768257,148.78,148.77,19.75134284]
[1749248913883,37.77610473,148.78,148.77,19.75134284]
[1749248914080,37.77607523,148.78,148.77,19.75134284]
[1749248914490,37.77625628,148.78,148.77,19.75134284]
[1749248914890,37.77611058,148.78,148.77,19.75134284]
[1749248915792,37.7684466,148.78,148.77,19.75134284]
[1749248916393,37.76900402,148.78,148.77,19.75134284]
[1749248916589,37.76920952,148.78,148.77,19.75134284]
[1749248916996,37.76808698,148.78,148.77,19.75134284]
[1749248917195,33.08768257,148.78,148.77,19.75134284]
[1749248917697,37.76872506,148.78,148.77,19.75134284]
[1749248918597,37.76637406,148.78,148.77,19.75134284]
[1749248919098,37.76658014,148.78,148.77,19.75134284]
[1749248919397,37.76649182,148.78,148.77,19.75134284]
[1749248919599,37.76663532,148.78,148.77,19.75134284]
[1749248919899,37.76660588,148.78,148.77,19.75134284]
[1749248920598,37.7658515,148.78,148.77,19.75134284]
[1749248921400,37.76628117,148.78,148.77,19.75134284]
[1749248921898,4.72628117,148.78,148.77,19.75134284]
[1749248922306,4.73281233,148.78,148.77,19.75134284]
[1749248923205,4.73291113,148.78,148.77,19.75134284]
[1749248924405,4.73242353,148.78,148.77,19.75134284]
[1749248924704,4.73245173,148.78,148.77,19.75134284]
[1749248924903,0.04768257,148.78,148.77,19.75134284]
[1749248925206,4.73291234,148.78,148.77,19.75134284]
[1749248925599,4.73291234,148.78,148.77,26.03769613]
[1749248926001,0.04768257,148.78,148.77,26.03769613]
[1749248926310,4.72928368,148.78,148.77,26.03769613]
[1749248927007,4.72928368,148.78,148.77,19.75134284]
[1749248927803,0.04768257,148.78,148.77,19.75134284]
[1749248928108,4.73188811,148.78,148.77,19.75134284]
[1749248928704,8.811e-05,148.78,148.77,19.75134284]
[1749248929117,33.02,148.81,148.8,6.7153]
[1749248929403,33.02,148.81,148.8,9.75004284]
[1749248929603,3.03474284,148.83,148.8,3.03474284]
[1749248929809,3.08405698,148.83,148.8,3.07763391]
[1749248930000,6.7144,148.82,148.8,3.07763391]
[1749248931115,6.7144,148.82,148.8,9.79273391]
[1749248932610,6.7144,148.82,148.8,3.07763391]
[1749248935212,6.7148,148.81,148.8,3.07763391]
[1749248938819,6.7146,148.82,148.8,3.07763391]
[1749248939217,0.04931414,148.83,148.81,3.03474284]
[1749248939410,6.76331414,148.83,148.82,3.03474284]
[1749248939717,6.76331414,148.83,148.81,3.03474284]
[1749248940913,6.76331414,148.83,148.82,3.03474284]
[1749248941117,11.36911288,148.83,148.82,3.03474284]
[1749248941609,11.36911288,148.83,148.81,3.03474284]
[1749248941809,4.60579874,148.82,148.81,3.03474284]
[1749248942104,4.59915222,148.82,148.81,3.03474284]
[1749248942714,6.76331414,148.83,148.81,3.03474284]
[1749248942911,11.30996787,148.82,148.81,3.03474284]
[1749248943107,4.59556787,148.82,148.81,3.03474284]
[1749248944020,4.59948101,148.82,148.81,3.03474284]
[1749248944415,6.76341414,148.83,148.81,3.03474284]
[1749248944720,4.59934976,148.82,148.81,3.03474284]
[1749248945519,4.59915428,148.82,148.81,3.03474284]
[1749248946321,4.59907937,148.82,148.81,3.03474284]
[1749248946516,4.59913714,148.82,148.81,3.03474284]
[1749248946821,4.59907728,148.82,148.81,3.03474284]
[1749248947620,4.60216903,148.82,148.81,3.03474284]
[1749248948821,11.31122888,148.82,148.8,13.07763391]
[1749248949023,4.59611137,148.81,148.8,13.07763391]
[1749248949321,6.7144,148.82,148.8,10.04289107]
[1749248949516,4.59627568,148.81,148.8,10.04289107]
[1749248949717,4.59639378,148.81,148.8,10.04289107]
[1749248949916,4.59618999,148.81,148.8,10.04289107]
[1749248950416,4.59680176,148.81,148.8,10.04289107]
[1749248950917,4.59251293,148.81,148.8,10.04289107]
[1749248951117,4.59252695,148.81,148.8,10.04289107]
[1749248951421,4.59255369,148.81,148.8,10.04289107]
[1749248951616,4.59251391,148.81,148.8,10.04289107]
[1749248951821,4.59255512,148.81,148.8,16.75819107]
[1749248952016,4.59255512,148.81,148.8,19.79293391]
[1749248952515,4.59255512,148.81,148.8,13.07763391]
[1749248953017,11.30850477,148.81,148.8,10.04289107]
[1749248953413,4.59375333,148.81,148.8,10.04289107]
[1749248953622,6.7147,148.82,148.8,10.04289107]
[1749248953817,4.59372397,148.81,148.8,10.04289107]
[1749248954122,4.59372397,148.81,148.8,0.04289107]
[1749248954417,4.59372397,148.81,148.8,10.04289107]
[1749248954723,4.59636751,148.81,148.8,10.04289107]
[1749248954922,4.59632767,148.81,148.8,10.04289107]
[1749248955318,6.7147,148.82,148.8,10.04289107]
[1749248955523,4.59632767,148.81,148.8,10.04289107]
[1749248956425,4.59649502,148.81,148.8,10.04289107]
[1749248956725,4.5966893,148.81,148.8,10.04289107]
[1749248956922,4.59668735,148.81,148.8,10.04289107]
[1749248957117,6.7147,148.82,148.8,10.04289107]
[1749248957323,4.59671537,148.81,148.8,10.04289107]
[1749248958023,4.59009823,148.81,148.8,10.04289107]
[1749248958221,6.7147,148.82,148.8,10.04289107]
[1749248958422,11.30529601,148.81,148.8,10.04289107]
[1749248958627,4.59050753,148.81,148.8,10.04289107]
[1749248958928,6.7147,148.82,148.8,10.04289107]
[1749248959128,4.59055753,148.81,148.8,10.04289107]
[1749248959432,4.59058845,148.81,148.8,10.04289107]
[1749248959627,4.58397659,148.81,148.8,10.04289107]
[1749248960029,4.58430993,148.81,148.8,10.04289107]
[1749248960217,4.58430993,148.81,148.8,16.75819107]
[1749248960417,4.58383339,148.81,148.8,16.75819107]
[1749248960930,4.58351787,148.81,148.8,13.07763391]
[1749248961928,4.58351787,148.81,148.8,10.04289107]
[1749248962120,4.58347762,148.81,148.8,10.04289107]
[1749248962821,4.58347762,148.81,148.8,16.75819107]
[1749248963632,4.58347762,148.81,148.8,10.04289107]
[1749248963825,6.7147,148.82,148.8,10.04289107]
[1749248964028,4.58477351,148.81,148.8,10.04289107]
[1749248965434,4.5863163,148.81,148.8,10.04289107]
[1749248965633,4.58630409,148.81,148.8,10.04289107]
[1749248965834,9.79815698,148.83,148.8,16.75799107]
[1749248966029,4.58663517,148.82,148.8,16.75799107]
[1749248966229,4.58663517,148.81,148.8,16.75799107]
[1749248966833,9.79815698,148.83,148.8,16.75799107]
[1749248967029,4.58138923,148.82,148.8,16.75799107]
[1749248967231,9.79815698,148.83,148.8,16.75799107]
[1749248967527,4.57957612,148.82,148.8,16.75799107]
[1749248967734,4.57957612,148.81,148.8,16.75799107]
[1749248968032,4.57957612,148.81,148.8,19.79273391]
[1749248969234,4.58000837,148.81,148.8,19.79273391]
[1749248969534,4.57994846,148.81,148.8,19.79273391]
[1749248970031,4.58009349,148.81,148.8,19.79273391]
[1749248970644,4.58010952,148.81,148.8,19.79273391]
[1749248971026,4.5800531,148.81,148.8,19.79273391]
[1749248971226,0.04931414,148.83,148.8,19.79273391]
[1749248971429,4.58008192,148.82,148.8,19.79273391]
[1749248971631,4.58008192,148.81,148.8,19.79273391]
[1749248972637,4.58423715,148.81,148.8,19.79273391]
[1749248972836,4.58421046,148.81,148.8,19.79273391]
[1749248973036,4.58421046,148.81,148.8,16.75799107]
[1749248973236,4.58421046,148.81,148.8,10.04289107]
[1749248974033,9.74944284,148.82,148.8,10.04289107]
[1749248974235,4.58239316,148.81,148.8,10.04289107]
[1749248974435,11.29719316,148.81,148.8,10.04289107]
[1749248974635,11.29701715,148.81,148.8,10.04289107]
[1749248974837,11.29701438,148.81,148.8,10.04289107]
[1749248975036,4.58221438,148.81,148.8,10.04289107]
[1749248975334,3.03474284,148.81,148.8,10.04289107]
[1749248975641,7.61821629,148.81,148.8,10.04289107]
[1749248976138,3.03474284,148.81,148.8,10.04289107]
[1749248976339,7.612895,148.81,148.8,10.04289107]
[1749248976540,7.61272783,148.81,148.8,10.04289107]
[1749248978635,3.03474284,148.81,148.8,10.04289107]
[1749248978836,7.60890829,148.81,148.8,10.04289107]
[1749248979042,7.6090146,148.81,148.8,10.04289107]
[1749248979429,3.03474284,148.81,148.8,10.04289107]
[1749248979940,7.60861955,148.81,148.8,10.04289107]
[1749248980142,3.03474284,148.81,148.8,10.04289107]
[1749248980941,9.74934284,148.82,148.8,10.04289107]
[1749248981241,4.56809111,148.81,148.8,10.04289107]
[1749248981635,37.5682073,148.81,148.8,10.04289107]
[1749248982238,37.5654025,148.81,148.8,16.75819107]
[1749248982940,37.56519826,148.81,148.8,16.75819107]
[1749248983941,37.56483867,148.81,148.8,16.75819107]
[1749248984242,37.56483277,148.81,148.8,16.75819107]
[1749248984535,33.0,148.81,148.8,16.75819107]
[1749248984740,37.56485482,148.81,148.8,16.75819107]
[1749248984942,44.27965482,148.81,148.8,10.04289107]
[1749248985542,44.27606436,148.81,148.8,10.04289107]
[1749248985840,47.3108072,148.81,148.8,10.04289107]
[1749248986235,47.31083514,148.81,148.8,10.04289107]
[1749248986434,47.31086609,148.81,148.8,10.04289107]
[1749248986644,42.74954284,148.81,148.8,10.04289107]
[1749248986843,47.31187433,148.81,148.8,10.04289107]
[1749248987237,42.74954284,148.81,148.8,10.04289107]
[1749248987438,47.31288193,148.81,148.8,10.04289107]
[1749248987835,42.74954284,148.81,148.8,10.04289107]
[1749248988241,47.31284503,148.81,148.8,10.04289107]
[1749248989245,47.31237782,148.81,148.8,10.04289107]
[1749248989648,42.74954284,148.81,148.8,10.04289107]
[1749248989950,47.31234122,148.81,148.8,10.04289107]
[1749248991449,42.74954284,148.81,148.8,10.04289107]
[1749248991844,47.31382778,148.81,148.8,10.04289107]
[1749248992347,36.03474284,148.81,148.8,10.04289107]
[1749248992544,40.60019259,148.81,148.8,10.04289107]
[1749248992953,40.60023742,148.81,148.8,10.04289107]
[1749248993254,40.60006829,148.81,148.8,10.04289107]
[1749248994156,40.60194768,148.81,148.8,10.04289107]
[1749248994859,36.03474284,148.81,148.8,10.04289107]
[1749248995353,40.60196236,148.81,148.8,10.04289107]
[1749248996144,40.60185506,148.81,148.8,10.04289107]
[1749248996461,40.60188157,148.81,148.8,10.04289107]
[1749248998054,40.6025008,148.81,148.8,10.04289107]
[1749248998359,36.03474284,148.81,148.8,10.04289107]
[1749248998557,40.60242483,148.81,148.8,10.04289107]
[1749248998952,40.60247341,148.81,148.8,10.04289107]
[1749248999764,40.60262895,148.81,148.8,10.04289107]
[1749249000061,37.56788611,148.81,148.8,10.04289107]
[1749249000264,33.0,148.81,148.8,10.04289107]
[1749249000460,37.56805755,148.81,148.8,10.04289107]
[1749249001668,33.0,148.81,148.8,10.04289107]
[1749249002272,37.56832514,148.81,148.8,10.04289107]
[1749249003177,40.60306798,148.81,148.8,10.04289107]
[1749249004877,36.03474284,148.81,148.8,10.04289107]
[1749249005079,37.56933085,148.81,148.8,10.04289107]
[1749249005271,33.0,148.81,148.8,10.04289107]
[1749249005473,37.56933223,148.81,148.8,10.04289107]
[1749249006576,37.56988598,148.81,148.8,10.04289107]
[1749249007075,37.56972465,148.81,148.8,10.04289107]
[1749249008578,37.57000363,148.81,148.8,10.04289107]
[1749249008880,37.57110145,148.81,148.8,10.04289107]
[1749249009086,37.5711305,148.81,148.8,10.04289107]
[1749249009273,33.0,148.81,148.8,10.04289107]
[1749249009473,37.5711305,148.81,148.8,10.04289107]
[1749249010080,33.0,148.81,148.8,10.04289107]
[1749249010282,37.57177205,148.81,148.8,10.04289107]
[1749249010475,37.57180684,148.81,148.8,10.04289107]
[1749249010881,40.60536525,148.81,148.8,10.04289107]
[1749249011471,40.60181911,148.81,148.8,10.04289107]
[1749249011983,36.03355841,148.81,148.8,10.04289107]
[1749249012182,40.60213947,148.81,148.8,10.04289107]
[1749249012483,47.3168533,148.81,148.8,10.04289107]
[1749249012778,33.0,148.81,148.8,16.75819107]
[1749249012976,37.56853048,148.81,148.8,16.75819107]
[1749249013576,33.0,148.81,148.8,16.75819107]
[1749249014082,37.56614265,148.81,148.8,16.75819107]
[1749249015483,37.56644741,148.81,148.8,16.75819107]
[1749249015680,33.0,148.81,148.8,16.75819107]
[1749249015878,37.5665033,148.81,148.8,16.75819107]
[1749249016081,33.0,148.81,148.8,16.75819107]
[1749249016282,37.5665033,148.81,148.8,16.75819107]
[1749249016478,37.5665033,148.81,148.8,10.04289107]
[1749249016978,37.56572569,148.81,148.8,10.04289107]
[1749249017185,37.56570361,148.81,148.8,10.04289107]
[1749249017386,33.0,148.81,148.8,10.04289107]
[1749249017786,37.56564251,148.81,148.8,10.04289107]
[1749249018083,42.74797449,148.81,148.8,10.04289107]
[1749249018281,47.31225523,148.81,148.8,10.04289107]
[1749249018683,47.31225523,148.81,148.8,5.0045015]
[1749249018883,47.31148248,148.81,148.8,5.0045015]
[1749249019482,47.31144273,148.81,148.8,5.0045015]
[1749249019780,47.3113719,148.81,148.8,5.0045015]
[1749249020086,47.31157292,148.81,148.8,5.0045015]
[1749249020885,47.30516592,148.81,148.8,5.0045015]
[1749249021188,6.7153,148.8,148.79,0.0465232]
[1749249021386,5.19707449,148.8,148.73,6.7182]
[1749249021582,3.03317449,148.75,148.72,101.61561672]
[1749249021782,4.54998979,148.74,148.72,101.61561672]
[1749249021983,4.54998979,148.73,148.72,98.58244223]
[1749249022183,4.54965415,148.73,148.72,98.58244223]
[1749249022787,0.04493168,148.74,148.72,105.30104223]
[1749249023590,4.54525926,148.73,148.72,115.30104223]
[1749249024281,0.04493168,148.74,148.72,115.30104223]
[1749249024475,4.53654873,148.73,148.72,115.30104223]
[1749249025282,4.53665925,148.73,148.72,115.30104223]
[1749249025489,0.04493168,148.74,148.72,115.30104223]
[1749249025786,4.53735041,148.73,148.72,115.30104223]
[1749249026290,4.5375156,148.73,148.72,115.30104223]
[1749249026589,4.53764581,148.73,148.72,115.30104223]
[1749249026792,3.07810617,148.74,148.72,115.30104223]
[1749249027287,4.51618642,148.73,148.72,115.30104223]
[1749249027790,7.59429259,148.74,148.72,115.30104223]
[1749249027988,4.5105478,148.73,148.72,115.30104223]
[1749249028182,4.51054791,148.73,148.72,115.30104223]
[1749249028386,3.07810617,148.74,148.72,115.30104223]
[1749249028587,4.51062022,148.73,148.72,115.30104223]
[1749249028790,7.58872639,148.74,148.72,115.30104223]
[1749249029687,3.07810617,148.74,148.72,115.30104223]
[1749249029891,7.58836014,148.74,148.72,115.30104223]
[1749249030088,3.07810617,148.74,148.72,115.30104223]
[1749249030288,7.58863715,148.74,148.72,115.30104223]
[1749249030502,7.58856768,148.74,148.72,115.30104223]
[1749249030994,7.58608901,148.74,148.72,115.30104223]
[1749249031197,7.58624502,148.74,148.73,6.7184]
[1749249031493,7.58534995,148.74,148.73,6.7184]
[1749249031690,3.07810617,148.74,148.73,6.7184]
[1749249031891,7.58508334,148.74,148.73,6.7184]
[1749249032087,4.55714969,148.74,148.73,6.7184]
[1749249032282,4.55714969,148.74,148.72,115.30114223]
[1749249032895,4.5578605,148.74,148.72,115.30114223]
[1749249033097,0.04493168,148.74,148.72,115.30114223]
[1749249033295,4.55797165,148.74,148.72,115.30114223]
[1749249033798,4.55721507,148.74,148.72,115.30114223]
[1749249033992,4.55717947,148.74,148.72,115.30114223]
[1749249034501,4.55717947,148.74,148.73,6.7184]
[1749249034802,0.04493168,148.74,148.73,6.7184]
[1749249034999,4.54783554,148.74,148.73,6.7184]
[1749249035494,4.54767148,148.74,148.73,6.7184]
[1749249035703,4.54767148,148.74,148.72,115.30114223]
[1749249036198,4.54744277,148.74,148.73,6.7184]
[1749249036588,4.5478698,148.74,148.73,6.7184]
[1749249036792,0.04493168,148.74,148.73,6.7184]
[1749249036997,4.54788066,148.74,148.73,6.7184]
[1749249037404,4.53745392,148.74,148.73,6.7184]
[1749249038286,4.53590219,148.74,148.73,6.7184]
[1749249040298,4.53617425,148.74,148.73,6.7184]
[1749249040498,4.53658247,148.74,148.73,6.7184]
[1749249040700,4.53611823,148.74,148.73,6.7184]
[1749249040899,4.5361262,148.74,148.73,6.7184]
[1749249041197,0.04493168,148.74,148.73,6.7184]
[1749249042800,4.54266446,148.74,148.73,6.7184]
[1749249043398,4.55961484,148.74,148.73,6.7184]
[1749249043598,0.04493168,148.74,148.73,6.7184]
[1749249043897,4.55988266,148.74,148.73,6.7184]
[1749249044298,7.59297595,148.74,148.72,105.30114223]
[1749249044497,7.59297595,148.74,148.73,10.0]
[1749249044699,3.07810617,148.74,148.73,10.0]
[1749249045299,7.59282845,148.74,148.73,10.0]
[1749249045598,3.07810617,148.74,148.73,10.0]
[1749249045997,7.59282845,148.74,148.73,10.0]
[1749249046699,3.07810617,148.74,148.73,10.0]
[1749249046901,7.59311266,148.74,148.73,10.0]
[1749249047103,3.07810617,148.74,148.73,10.0]
[1749249047299,7.59314138,148.74,148.73,10.0]
[1749249047603,7.59313851,148.74,148.73,10.0]
[1749249047802,7.5939519,148.74,148.73,10.0]
[1749249048505,3.07810617,148.74,148.73,10.0]
[1749249048800,7.59379747,148.74,148.73,10.0]
[1749249049003,3.07810617,148.74,148.73,10.0]
[1749249049207,7.59377936,148.74,148.73,10.0]
[1749249049704,7.59500823,148.74,148.73,10.0]
[1749249050106,14.31300823,148.74,148.73,10.0]
[1749249050500,14.31429399,148.74,148.73,10.0]
[1749249052202,14.31558845,148.74,148.73,10.0]
[1749249052506,3.07810617,148.74,148.73,10.0]
[1749249052804,7.59896982,148.74,148.73,10.0]
[1749249053407,3.07810617,148.74,148.73,10.0]
[1749249053707,7.59784915,148.74,148.73,10.0]
[1749249054007,7.59801927,148.74,148.73,10.0]
[1749249054209,3.07810617,148.74,148.73,10.0]
[1749249054409,7.59790691,148.74,148.73,10.0]
[1749249054700,7.59792016,148.74,148.73,10.0]
[1749249055410,3.07810617,148.74,148.73,10.0]
[1749249055706,7.60078609,148.74,148.73,10.0]
[1749249057106,7.60045172,148.74,148.73,10.0]
[1749249057298,14.31836017,148.74,148.73,10.0]
[1749249057811,7.60036017,148.74,148.73,10.0]
[1749249058104,7.60011487,148.74,148.73,10.0]
[1749249059002,3.07810617,148.74,148.73,10.0]
[1749249059206,6.7186,148.73,148.71,0.05065569]
[1749249059501,7.55993213,148.72,148.71,0.05065569]
[1749249059707,7.56002339,148.72,148.71,0.05065569]
[1749249059907,7.56002154,148.72,148.71,0.05065569]
[1749249060902,7.55980439,148.72,148.71,0.05065569]
[1749249061109,7.55989085,148.72,148.71,6.76995569]
[1749249061308,3.03317449,148.72,148.71,6.76995569]
[1749249061608,7.549437,148.72,148.71,0.05065569]
[1749249062908,7.55772646,148.72,148.71,0.05065569]
[1749249063106,40.51772646,148.72,148.71,0.05065569]
[1749249063506,40.51769617,148.72,148.71,0.05065569]
[1749249064204,40.51694716,148.72,148.71,0.05065569]
[1749249064409,35.99317449,148.72,148.71,0.05065569]
[1749249064605,40.51683075,148.72,148.71,0.05065569]
[1749249064811,40.51578812,148.72,148.71,0.05065569]
[1749249065009,40.51590329,148.72,148.71,0.05065569]
[1749249066410,35.99317449,148.72,148.71,0.05065569]
[1749249066617,40.50464209,148.72,148.71,0.05065569]
[1749249068007,40.50303994,148.72,148.71,10.05065569]
[1749249068313,40.50303994,148.72,148.71,16.76995569]
[1749249068512,35.99317449,148.72,148.71,16.76995569]
[1749249068913,40.50284363,148.72,148.71,16.76995569]
[1749249069714,40.50304325,148.72,148.71,16.76995569]
[1749249070014,40.50303487,148.72,148.71,16.76995569]
[1749249070315,40.50295729,148.72,148.71,16.76995569]
[1749249071614,35.99317449,148.72,148.71,16.76995569]
[1749249071809,40.50233051,148.72,148.71,16.76995569]
[1749249072010,40.50233051,148.72,148.71,10.05065569]
[1749249072011,47.22123051,148.72,148.71,10.05065569]
[1749249072814,47.22123051,148.72,148.71,6.54405569]
[1749249073017,6.72,148.7,148.65,9.29092819]
[1749249073217,3.03317449,148.68,148.65,3.03317449]
[1749249073411,4.50843193,148.67,148.65,3.03317449]
[1749249073607,4.50852268,148.66,148.65,3.03317449]
[1749249073917,3.03317449,148.68,148.67,6.7211]
[1749249074113,7.54144143,148.68,148.67,6.7211]
[1749249074311,7.54144143,148.68,148.65,3.08450148]
[1749249074312,3.08427796,148.69,148.68,6.7207]
[1749249074611,7.60976261,148.69,148.68,6.7207]
[1749249074822,3.08427796,148.69,148.68,6.7207]
[1749249075210,7.60976261,148.69,148.68,6.7207]
[1749249075516,7.60977148,148.69,148.68,16.7207]
[1749249075716,3.08427796,148.69,148.68,16.7207]
[1749249075910,7.60982717,148.69,148.68,16.7207]
[1749249076919,4.56064476,148.69,148.68,16.7207]
[1749249077219,4.56114821,148.69,148.68,19.75387449]
[1749249077420,4.56142938,148.69,148.68,19.75387449]
[1749249077620,32.96,148.72,148.71,6.7193]
[1749249085925,32.96,148.72,148.71,9.75247449]
[1749249086823,32.96,148.72,148.71,6.7193]
[1749249089425,0.04428257,148.73,148.72,6.7189]
[1749249089725,4.51050396,148.73,148.72,6.7189]
[1749249091020,4.51051749,148.73,148.72,6.7189]
[1749249091324,4.51049433,148.73,148.72,6.7189]
[1749249091517,4.51066489,148.73,148.72,6.7189]
[1749249091716,4.51064568,148.73,148.72,9.75207449]
[1749249091917,0.04428257,148.73,148.72,9.75207449]
[1749249092214,4.51064568,148.73,148.72,9.75207449]
[1749249092422,4.51064568,148.73,148.72,6.7189]
[1749249092721,4.51064568,148.73,148.71,10.0]